[Event "Titled Tuesday Blitz June 14 Early 2022"]
[White "Lagno, Kateryna"]
[Black "Gracia Alvarez, Gerardo Antonio"]
[WhiteFideId "14109336"]
[BlackFideId "5109124"]
[WhiteElo "2522"]
[BlackElo "2139"]
[Result "1/2-1/2"]
[Round "11"]
[TimeControl "180+1"]
[Date "2022.06.14"]
[WhiteClock "0:00:31"]
[BlackClock "0:00:06"]

1. e4 {[%clk 0:03:00]}  c5 {[%clk 0:02:59]} 2. Nf3 {[%clk 0:03:00]}  Nc6 {[%clk 0:03:00]} 3. d4 {[%clk 0:03:01]}  cxd4 {[%clk 0:03:00]} 4. Nxd4 {[%clk 0:03:02]}  Nf6 {[%clk 0:03:00]} 5. Nc3 {[%clk 0:03:02]}  e5 {[%clk 0:03:01]} 6. Ndb5 {[%clk 0:03:03]}  h6 {[%clk 0:03:01]} 7. Nd6+ {[%clk 0:03:00]}  Bxd6 {[%clk 0:03:01]} 8. Qxd6 {[%clk 0:03:01]}  Qe7 {[%clk 0:03:02]} 9. Qxe7+ {[%clk 0:02:59]}  Kxe7 {[%clk 0:03:03]} 10. b3 {[%clk 0:02:55]}  d6 {[%clk 0:03:01]} 11. Bb2 {[%clk 0:02:51]}  Be6 {[%clk 0:03:00]} 12. O-O-O {[%clk 0:02:47]}  a6 {[%clk 0:02:57]} 13. a4 {[%clk 0:02:41]}  Rac8 {[%clk 0:02:46]} 14. Kb1 {[%clk 0:02:39]}  Rhd8 {[%clk 0:02:43]} 15. Bd3 {[%clk 0:02:31]}  Nb4 {[%clk 0:02:22]} 16. Be2 {[%clk 0:02:29]}  Ke8 {[%clk 0:01:49]} 17. f3 {[%clk 0:02:18]}  d5 {[%clk 0:01:22]} 18. exd5 {[%clk 0:02:17]}  Bf5 {[%clk 0:01:17]} 19. Rd2 {[%clk 0:01:57]}  Nfxd5 {[%clk 0:01:10]} 20. Ne4 {[%clk 0:01:53]}  Bxe4 {[%clk 0:00:58]} 21. fxe4 {[%clk 0:01:54]}  Nc3+ {[%clk 0:00:53]} 22. Bxc3 {[%clk 0:01:51]}  Rxc3 {[%clk 0:00:54]} 23. Rhd1 {[%clk 0:01:45]}  Rxd2 {[%clk 0:00:53]} 24. Rxd2 {[%clk 0:01:45]}  Re3 {[%clk 0:00:52]} 25. Kb2 {[%clk 0:01:41]}  Nc6 {[%clk 0:00:47]} 26. Bd3 {[%clk 0:01:32]}  Ke7 {[%clk 0:00:40]} 27. c3 {[%clk 0:01:26]}  a5 {[%clk 0:00:35]} 28. Kc2 {[%clk 0:01:21]}  g6 {[%clk 0:00:35]} 29. Re2 {[%clk 0:01:20]}  Rxe2+ {[%clk 0:00:33]} 30. Bxe2 {[%clk 0:01:21]}  f5 {[%clk 0:00:33]} 31. Kd3 {[%clk 0:01:16]}  Kd6 {[%clk 0:00:28]} 32. exf5 {[%clk 0:01:13]}  gxf5 {[%clk 0:00:28]} 33. Kc4 {[%clk 0:01:14]}  e4 {[%clk 0:00:26]} 34. Kb5 {[%clk 0:01:07]}  f4 {[%clk 0:00:25]} 35. b4 {[%clk 0:01:07]}  axb4 {[%clk 0:00:24]} 36. Kc4 {[%clk 0:01:07]}  bxc3 {[%clk 0:00:20]} 37. Kxc3 {[%clk 0:01:08]}  Kc5 {[%clk 0:00:19]} 38. Bg4 {[%clk 0:01:06]}  b6 {[%clk 0:00:17]} 39. Bf5 {[%clk 0:01:01]}  e3 {[%clk 0:00:18]} 40. Bg4 {[%clk 0:01:02]}  Ne5 {[%clk 0:00:15]} 41. Be2 {[%clk 0:01:01]}  Nd7 {[%clk 0:00:13]} 42. Kd3 {[%clk 0:01:00]}  Kb4 {[%clk 0:00:12]} 43. Ke4 {[%clk 0:01:00]}  Kxa4 {[%clk 0:00:11]} 44. Kxf4 {[%clk 0:01:01]}  b5 {[%clk 0:00:10]} 45. Kxe3 {[%clk 0:01:00]}  b4 {[%clk 0:00:11]} 46. Kd2 {[%clk 0:00:59]}  b3 {[%clk 0:00:09]} 47. Bd3 {[%clk 0:00:55]}  Kb4 {[%clk 0:00:08]} 48. g4 {[%clk 0:00:52]}  Ne5 {[%clk 0:00:08]} 49. Bf5 {[%clk 0:00:52]}  Kc4 {[%clk 0:00:07]} 50. Ke3 {[%clk 0:00:51]}  Kd5 {[%clk 0:00:06]} 51. Kf4 {[%clk 0:00:50]}  b2 {[%clk 0:00:05]} 52. h4 {[%clk 0:00:48]}  Nc4 {[%clk 0:00:05]} 53. Bd3 {[%clk 0:00:42]}  Kd6 {[%clk 0:00:04]} 54. h5 {[%clk 0:00:39]}  Ke7 {[%clk 0:00:04]} 55. g5 {[%clk 0:00:32]}  hxg5+ {[%clk 0:00:05]} 56. Kxg5 {[%clk 0:00:33]}  Kf8 {[%clk 0:00:05]} 57. h6 {[%clk 0:00:33]}  Ne5 {[%clk 0:00:04]} 58. Bb1 {[%clk 0:00:32]}  Kg8 {[%clk 0:00:05]} 59. Kf6 {[%clk 0:00:32]}  Nf3 {[%clk 0:00:04]} 60. Kg6 {[%clk 0:00:33]}  Kh8 {[%clk 0:00:04]} 61. Kh5 {[%clk 0:00:31]}  Nd2 {[%clk 0:00:04]} 62. Bc2 {[%clk 0:00:31]}  b1=Q {[%clk 0:00:05]} 63. Bxb1 {[%clk 0:00:31]}  Nxb1 {[%clk 0:00:06]} 64. Kg4 {[%clk 0:00:31]}  Nd2 {[%clk 0:00:06]} 65. Kg5 {[%clk 0:00:32]}  Kh7 {[%clk 0:00:07]} 66. Kf5 {[%clk 0:00:33]}  Nf3 {[%clk 0:00:07]} 67. Kf4 {[%clk 0:00:31]}  Kxh6 {[%clk 0:00:06]} 1/2-1/2


[Site "https://www.chess.com"]

[Event "Titled Tuesday Blitz June 14 Early 2022"]
[White "Le, Tuan Minh"]
[Black "Bharath Subramaniyam H"]
[WhiteFideId "12401153"]
[BlackFideId "46634827"]
[WhiteElo "2530"]
[BlackElo "2242"]
[Result "0-1"]
[Round "11"]
[TimeControl "180+1"]
[Date "2022.06.14"]
[WhiteClock "0:00:02"]
[BlackClock "0:00:05"]

1. d4 {[%clk 0:03:00]}  Nf6 {[%clk 0:02:59]} 2. Nf3 {[%clk 0:03:00]}  d6 {[%clk 0:02:58]} 3. Bg5 {[%clk 0:02:57]}  Nbd7 {[%clk 0:02:55]} 4. Nc3 {[%clk 0:02:56]}  e5 {[%clk 0:02:45]} 5. e4 {[%clk 0:02:48]}  Be7 {[%clk 0:02:46]} 6. Bc4 {[%clk 0:02:47]}  O-O {[%clk 0:02:43]} 7. O-O {[%clk 0:02:48]}  c6 {[%clk 0:02:41]} 8. Bb3 {[%clk 0:02:47]}  Ng4 {[%clk 0:02:37]} 9. Bxe7 {[%clk 0:02:35]}  Qxe7 {[%clk 0:02:37]} 10. Re1 {[%clk 0:02:36]}  Ngf6 {[%clk 0:02:33]} 11. Qd2 {[%clk 0:02:33]}  b5 {[%clk 0:02:30]} 12. a3 {[%clk 0:02:29]}  a6 {[%clk 0:02:26]} 13. h3 {[%clk 0:02:30]}  Bb7 {[%clk 0:02:22]} 14. Nh4 {[%clk 0:02:16]}  g6 {[%clk 0:02:14]} 15. dxe5 {[%clk 0:01:59]}  dxe5 {[%clk 0:02:13]} 16. Qg5 {[%clk 0:01:59]}  Kh8 {[%clk 0:02:10]} 17. Rad1 {[%clk 0:02:00]}  Rad8 {[%clk 0:01:48]} 18. Rd3 {[%clk 0:01:33]}  c5 {[%clk 0:01:05]} 19. Red1 {[%clk 0:00:50]}  Rfe8 {[%clk 0:01:00]} 20. Qe3 {[%clk 0:00:17]}  c4 {[%clk 0:00:55]} 21. Rd6 {[%clk 0:00:18]}  cxb3 {[%clk 0:00:52]} 22. cxb3 {[%clk 0:00:19]}  Nf8 {[%clk 0:00:43]} 23. Qb6 {[%clk 0:00:18]}  Rxd6 {[%clk 0:00:42]} 24. Rxd6 {[%clk 0:00:19]}  N6d7 {[%clk 0:00:39]} 25. Qc7 {[%clk 0:00:18]}  Ba8 {[%clk 0:00:17]} 26. Nf3 {[%clk 0:00:18]}  Qd8 {[%clk 0:00:16]} 27. Qxd8 {[%clk 0:00:16]}  Rxd8 {[%clk 0:00:17]} 28. Nxe5 {[%clk 0:00:17]}  Kg7 {[%clk 0:00:17]} 29. Nxd7 {[%clk 0:00:15]}  Rxd7 {[%clk 0:00:18]} 30. Rxa6 {[%clk 0:00:16]}  Bb7 {[%clk 0:00:16]} 31. Rb6 {[%clk 0:00:16]}  Ne6 {[%clk 0:00:15]} 32. Rxb5 {[%clk 0:00:16]}  Ba6 {[%clk 0:00:14]} 33. Rb6 {[%clk 0:00:16]}  Bd3 {[%clk 0:00:14]} 34. a4 {[%clk 0:00:15]}  Nc5 {[%clk 0:00:14]} 35. f3 {[%clk 0:00:16]}  Bc2 {[%clk 0:00:13]} 36. a5 {[%clk 0:00:16]}  Bxb3 {[%clk 0:00:12]} 37. Rb5 {[%clk 0:00:13]}  Rc7 {[%clk 0:00:12]} 38. Kf2 {[%clk 0:00:12]}  Bc4 {[%clk 0:00:12]} 39. Rb6 {[%clk 0:00:12]}  Ra7 {[%clk 0:00:11]} 40. b4 {[%clk 0:00:12]}  Nd3+ {[%clk 0:00:10]} 41. Ke3 {[%clk 0:00:12]}  Nb2 {[%clk 0:00:08]} 42. Kd4 {[%clk 0:00:13]}  Bf1 {[%clk 0:00:09]} 43. h4 {[%clk 0:00:12]}  Bxg2 {[%clk 0:00:08]} 44. f4 {[%clk 0:00:12]}  Rd7+ {[%clk 0:00:07]} 45. Kc5 {[%clk 0:00:06]}  Nd3+ {[%clk 0:00:04]} 46. Kc6 {[%clk 0:00:06]}  Rd4 {[%clk 0:00:05]} 47. a6 {[%clk 0:00:04]}  Rc4+ {[%clk 0:00:04]} 48. Kd5 {[%clk 0:00:04]}  Rxc3 {[%clk 0:00:05]} 49. Kd4 {[%clk 0:00:03]}  Ra3 {[%clk 0:00:06]} 50. b5 {[%clk 0:00:04]}  Nxf4 {[%clk 0:00:05]} 51. Rb7 {[%clk 0:00:02]}  Ra4+ {[%clk 0:00:05]} 0-1


[Site "https://www.chess.com"]

[Event "Titled Tuesday Blitz June 14 Early 2022"]
[White "Lewtak, Damian"]
[Black "Reprintsev, Alexander"]
[WhiteFideId "1141724"]
[BlackFideId "14100541"]
[WhiteElo "2379"]
[BlackElo "2108"]
[Result "1-0"]
[Round "11"]
[TimeControl "180+1"]
[Date "2022.06.14"]
[WhiteClock "0:00:22"]
[BlackClock "0:00:15"]

1. c4 {[%clk 0:02:59]}  e5 {[%clk 0:02:59]} 2. Nc3 {[%clk 0:02:54]}  Nc6 {[%clk 0:02:58]} 3. g3 {[%clk 0:02:54]}  Bc5 {[%clk 0:02:58]} 4. Bg2 {[%clk 0:02:54]}  Nf6 {[%clk 0:02:58]} 5. e3 {[%clk 0:02:55]}  d5 {[%clk 0:02:58]} 6. cxd5 {[%clk 0:02:54]}  Nb4 {[%clk 0:02:57]} 7. d3 {[%clk 0:02:45]}  Nbxd5 {[%clk 0:02:56]} 8. Nxd5 {[%clk 0:02:44]}  Nxd5 {[%clk 0:02:56]} 9. a3 {[%clk 0:02:45]}  O-O {[%clk 0:02:54]} 10. Ne2 {[%clk 0:02:43]}  a5 {[%clk 0:02:52]} 11. Nc3 {[%clk 0:02:42]}  Nxc3 {[%clk 0:02:51]} 12. bxc3 {[%clk 0:02:43]}  c6 {[%clk 0:02:38]} 13. d4 {[%clk 0:02:43]}  Bd6 {[%clk 0:02:37]} 14. O-O {[%clk 0:02:42]}  Be6 {[%clk 0:02:35]} 15. Bb2 {[%clk 0:02:38]}  a4 {[%clk 0:02:31]} 16. Re1 {[%clk 0:02:37]}  Bb3 {[%clk 0:02:31]} 17. Qh5 {[%clk 0:02:33]}  Qc7 {[%clk 0:02:29]} 18. c4 {[%clk 0:02:28]}  exd4 {[%clk 0:02:24]} 19. Bxd4 {[%clk 0:02:25]}  Bxc4 {[%clk 0:01:51]} 20. Bxg7 {[%clk 0:02:21]}  Ra5 {[%clk 0:01:33]} 21. Qh6 {[%clk 0:02:04]}  Rfa8 {[%clk 0:01:14]} 22. Bf6 {[%clk 0:01:55]}  Bf8 {[%clk 0:01:14]} 23. Qh4 {[%clk 0:01:53]}  Be6 {[%clk 0:01:09]} 24. Be4 {[%clk 0:01:52]}  h6 {[%clk 0:01:05]} 25. Rad1 {[%clk 0:01:47]}  Bg7 {[%clk 0:01:04]} 26. Bd8 {[%clk 0:01:38]}  Rxd8 {[%clk 0:00:49]} 27. Rxd8+ {[%clk 0:01:38]}  Bf8 {[%clk 0:00:42]} 28. Red1 {[%clk 0:01:10]}  Kg7 {[%clk 0:00:42]} 29. Rxf8 {[%clk 0:01:09]}  Kxf8 {[%clk 0:00:41]} 30. Qxh6+ {[%clk 0:01:03]}  Ke7 {[%clk 0:00:41]} 31. Qh4+ {[%clk 0:00:56]}  Ke8 {[%clk 0:00:34]} 32. Qh8+ {[%clk 0:00:55]}  Ke7 {[%clk 0:00:34]} 33. h4 {[%clk 0:00:56]}  Bd5 {[%clk 0:00:30]} 34. Bxd5 {[%clk 0:00:48]}  Rxd5 {[%clk 0:00:26]} 35. Rxd5 {[%clk 0:00:46]}  cxd5 {[%clk 0:00:27]} 36. h5 {[%clk 0:00:44]}  Qc1+ {[%clk 0:00:24]} 37. Kg2 {[%clk 0:00:44]}  Qxa3 {[%clk 0:00:21]} 38. h6 {[%clk 0:00:39]}  Qd3 {[%clk 0:00:17]} 39. Qe5+ {[%clk 0:00:27]}  Kd7 {[%clk 0:00:18]} 40. Qh5 {[%clk 0:00:23]}  Kc6 {[%clk 0:00:15]} 41. h7 {[%clk 0:00:22]} 1-0


[Site "https://www.chess.com"]

[Event "Titled Tuesday Blitz June 14 Early 2022"]
[White "Madaminov, Mukhiddin"]
[Black "Aditya Mittal"]
[WhiteFideId "14210703"]
[BlackFideId "35042025"]
[WhiteElo "1916"]
[BlackElo "2303"]
[Result "1-0"]
[Round "11"]
[TimeControl "180+1"]
[Date "2022.06.14"]
[WhiteClock "0:00:08"]
[BlackClock "0:00:02"]

1. d4 {[%clk 0:03:00]}  Nf6 {[%clk 0:03:00]} 2. Nc3 {[%clk 0:03:00]}  d5 {[%clk 0:03:00]} 3. Bf4 {[%clk 0:03:00]}  e6 {[%clk 0:03:00]} 4. Nb5 {[%clk 0:03:00]}  Na6 {[%clk 0:03:00]} 5. e3 {[%clk 0:03:01]}  c6 {[%clk 0:03:01]} 6. Nc3 {[%clk 0:03:01]}  Nc7 {[%clk 0:03:01]} 7. Bd3 {[%clk 0:02:56]}  Bd6 {[%clk 0:03:01]} 8. Qf3 {[%clk 0:02:55]}  h5 {[%clk 0:02:52]} 9. Nge2 {[%clk 0:02:52]}  e5 {[%clk 0:02:34]} 10. Bxe5 {[%clk 0:02:52]}  Bg4 {[%clk 0:02:31]} 11. Qg3 {[%clk 0:02:06]}  h4 {[%clk 0:02:28]} 12. Qf4 {[%clk 0:02:01]}  Ne6 {[%clk 0:02:29]} 13. Bxf6 {[%clk 0:02:01]}  Nxf4 {[%clk 0:02:28]} 14. Bxd8 {[%clk 0:02:01]}  Nxg2+ {[%clk 0:01:39]} 15. Kd2 {[%clk 0:01:51]}  Rxd8 {[%clk 0:01:38]} 16. h3 {[%clk 0:01:50]}  Bf3 {[%clk 0:01:29]} 17. Ng1 {[%clk 0:01:45]}  Ne1 {[%clk 0:01:24]} 18. Nxf3 {[%clk 0:01:30]}  Nxf3+ {[%clk 0:01:25]} 19. Ke2 {[%clk 0:01:31]}  Ng5 {[%clk 0:01:26]} 20. Rag1 {[%clk 0:01:30]}  Ne6 {[%clk 0:01:26]} 21. Bf5 {[%clk 0:01:24]}  Kf8 {[%clk 0:01:24]} 22. Nd1 {[%clk 0:01:20]}  Re8 {[%clk 0:01:24]} 23. c3 {[%clk 0:01:18]}  g6 {[%clk 0:01:25]} 24. Bc2 {[%clk 0:01:12]}  Kg7 {[%clk 0:01:25]} 25. Rg4 {[%clk 0:01:13]}  Kf6 {[%clk 0:01:18]} 26. Kf3 {[%clk 0:01:07]}  b5 {[%clk 0:01:10]} 27. b3 {[%clk 0:01:06]}  a5 {[%clk 0:01:10]} 28. Nb2 {[%clk 0:01:06]}  Rh5 {[%clk 0:01:00]} 29. Rhg1 {[%clk 0:00:52]}  Rb8 {[%clk 0:00:48]} 30. Ke2 {[%clk 0:00:46]}  Ng5 {[%clk 0:00:47]} 31. Nd3 {[%clk 0:00:38]}  Nxh3 {[%clk 0:00:44]} 32. Rh1 {[%clk 0:00:38]}  Ng5 {[%clk 0:00:43]} 33. Nf4 {[%clk 0:00:32]}  Bxf4 {[%clk 0:00:41]} 34. Rxf4+ {[%clk 0:00:33]}  Ke7 {[%clk 0:00:37]} 35. Rfxh4 {[%clk 0:00:33]}  Rxh4 {[%clk 0:00:37]} 36. Rxh4 {[%clk 0:00:33]}  a4 {[%clk 0:00:28]} 37. f4 {[%clk 0:00:32]}  axb3 {[%clk 0:00:26]} 38. axb3 {[%clk 0:00:32]}  Ne4 {[%clk 0:00:26]} 39. c4 {[%clk 0:00:17]}  bxc4 {[%clk 0:00:26]} 40. Bxe4 {[%clk 0:00:16]}  dxe4 {[%clk 0:00:25]} 41. bxc4 {[%clk 0:00:17]}  Rb2+ {[%clk 0:00:26]} 42. Kd1 {[%clk 0:00:17]}  Rb4 {[%clk 0:00:23]} 43. c5 {[%clk 0:00:14]}  Rb3 {[%clk 0:00:23]} 44. Kd2 {[%clk 0:00:13]}  Ke6 {[%clk 0:00:23]} 45. Rh7 {[%clk 0:00:13]}  Rd3+ {[%clk 0:00:22]} 46. Ke2 {[%clk 0:00:13]}  Ra3 {[%clk 0:00:22]} 47. Rg7 {[%clk 0:00:12]}  Ra2+ {[%clk 0:00:22]} 48. Kd1 {[%clk 0:00:09]}  Kf6 {[%clk 0:00:19]} 49. Rg8 {[%clk 0:00:09]}  Kf5 {[%clk 0:00:18]} 50. Re8 {[%clk 0:00:09]}  f6 {[%clk 0:00:15]} 51. Re7 {[%clk 0:00:09]}  g5 {[%clk 0:00:15]} 52. fxg5 {[%clk 0:00:08]}  fxg5 {[%clk 0:00:16]} 53. Re5+ {[%clk 0:00:09]}  Kg4 {[%clk 0:00:16]} 54. Rxe4+ {[%clk 0:00:09]}  Kf3 {[%clk 0:00:17]} 55. Re6 {[%clk 0:00:08]}  g4 {[%clk 0:00:17]} 56. Rxc6 {[%clk 0:00:08]}  g3 {[%clk 0:00:18]} 57. Rg6 {[%clk 0:00:07]}  g2 {[%clk 0:00:15]} 58. c6 {[%clk 0:00:06]}  Ra6 {[%clk 0:00:06]} 59. d5 {[%clk 0:00:06]}  Ke4 {[%clk 0:00:06]} 60. Rxg2 {[%clk 0:00:03]}  Kxd5 {[%clk 0:00:06]} 61. c7 {[%clk 0:00:04]}  Ra1+ {[%clk 0:00:02]} 62. Kc2 {[%clk 0:00:03]}  Ra2+ {[%clk 0:00:03]} 63. Kd3 {[%clk 0:00:03]}  Ra3+ {[%clk 0:00:02]} 64. Kc2 {[%clk 0:00:04]}  Ra8 {[%clk 0:00:02]} 65. Rg7 {[%clk 0:00:03]}  Kd6 {[%clk 0:00:02]} 66. Kd3 {[%clk 0:00:03]}  Rc8 {[%clk 0:00:02]} 67. Ke4 {[%clk 0:00:04]}  Re8+ {[%clk 0:00:02]} 68. Kd4 {[%clk 0:00:04]}  Rc8 {[%clk 0:00:02]} 69. e4 {[%clk 0:00:05]}  Re8 {[%clk 0:00:02]} 70. e5+ {[%clk 0:00:05]}  Ke6 {[%clk 0:00:01]} 71. Ke4 {[%clk 0:00:06]}  Rc8 {[%clk 0:00:01]} 72. Rg6+ {[%clk 0:00:03]}  Ke7 {[%clk 0:00:01]} 73. Rc6 {[%clk 0:00:03]}  Kd7 {[%clk 0:00:01]} 74. Kd5 {[%clk 0:00:04]}  Ra8 {[%clk 0:00:02]} 75. c8=Q+ {[%clk 0:00:05]}  Rxc8 {[%clk 0:00:02]} 76. e6+ {[%clk 0:00:05]}  Kd8 {[%clk 0:00:02]} 77. e7+ {[%clk 0:00:06]}  Kd7 {[%clk 0:00:01]} 78. Rxc8 {[%clk 0:00:07]}  Kxe7 {[%clk 0:00:01]} 79. Rc6 {[%clk 0:00:06]}  Kd7 {[%clk 0:00:02]} 80. Re6 {[%clk 0:00:07]}  Kc7 {[%clk 0:00:03]} 81. Re7+ {[%clk 0:00:08]}  Kb6 {[%clk 0:00:02]} 82. Rf7 {[%clk 0:00:09]}  Kb5 {[%clk 0:00:03]} 83. Rb7+ {[%clk 0:00:08]}  Ka6 {[%clk 0:00:02]} 1-0


[Site "https://www.chess.com"]

[Event "Titled Tuesday Blitz June 14 Early 2022"]
[White "Maximov, Dmitry"]
[Black "Stribuk, Artiom"]
[WhiteFideId "14105659"]
[BlackFideId "13515659"]
[WhiteElo "2494"]
[BlackElo "2259"]
[Result "1-0"]
[Round "11"]
[TimeControl "180+1"]
[Date "2022.06.14"]
[WhiteClock "0:00:10"]
[BlackClock "0:00:04"]

1. e4 {[%clk 0:02:59]}  c5 {[%clk 0:02:58]} 2. Nf3 {[%clk 0:02:59]}  Nc6 {[%clk 0:02:59]} 3. Bb5 {[%clk 0:02:59]}  e6 {[%clk 0:02:59]} 4. O-O {[%clk 0:02:59]}  Nge7 {[%clk 0:02:58]} 5. Re1 {[%clk 0:02:59]}  b6 {[%clk 0:02:56]} 6. c3 {[%clk 0:02:59]}  a6 {[%clk 0:02:49]} 7. Bf1 {[%clk 0:02:58]}  d5 {[%clk 0:02:48]} 8. exd5 {[%clk 0:02:54]}  Nxd5 {[%clk 0:02:49]} 9. d4 {[%clk 0:02:53]}  cxd4 {[%clk 0:02:50]} 10. Nxd4 {[%clk 0:02:53]}  Bb7 {[%clk 0:02:50]} 11. Nxc6 {[%clk 0:02:19]}  Bxc6 {[%clk 0:02:49]} 12. Nd2 {[%clk 0:02:20]}  Qc7 {[%clk 0:02:34]} 13. Nc4 {[%clk 0:02:06]}  Be7 {[%clk 0:02:30]} 14. Ne5 {[%clk 0:02:00]}  Bb7 {[%clk 0:02:17]} 15. Qh5 {[%clk 0:01:49]}  O-O {[%clk 0:02:11]} 16. Bd3 {[%clk 0:01:46]}  Nf6 {[%clk 0:01:50]} 17. Qh3 {[%clk 0:01:44]}  Rfd8 {[%clk 0:01:19]} 18. Bg5 {[%clk 0:01:42]}  h6 {[%clk 0:01:02]} 19. Nxf7 {[%clk 0:00:57]}  Rxd3 {[%clk 0:01:00]} 20. Nxh6+ {[%clk 0:00:53]}  gxh6 {[%clk 0:00:56]} 21. Qxd3 {[%clk 0:00:38]}  Kf7 {[%clk 0:00:34]} 22. Bxf6 {[%clk 0:00:28]}  Bxf6 {[%clk 0:00:34]} 23. Qh7+ {[%clk 0:00:28]}  Bg7 {[%clk 0:00:34]} 24. Rad1 {[%clk 0:00:24]}  Rh8 {[%clk 0:00:30]} 25. Qd3 {[%clk 0:00:22]}  Re8 {[%clk 0:00:26]} 26. Qh3 {[%clk 0:00:18]}  Qc6 {[%clk 0:00:23]} 27. f3 {[%clk 0:00:14]}  Kg8 {[%clk 0:00:22]} 28. Kh1 {[%clk 0:00:13]}  e5 {[%clk 0:00:22]} 29. Qh5 {[%clk 0:00:13]}  Qe6 {[%clk 0:00:18]} 30. Re3 {[%clk 0:00:11]}  Bc6 {[%clk 0:00:16]} 31. Red3 {[%clk 0:00:10]}  Kh7 {[%clk 0:00:14]} 32. Rd6 {[%clk 0:00:09]}  Qxa2 {[%clk 0:00:03]} 33. Qg6+ {[%clk 0:00:09]}  Kg8 {[%clk 0:00:04]} 34. Rxc6 {[%clk 0:00:10]}  Rf8 {[%clk 0:00:04]} 35. Rc7 {[%clk 0:00:10]} 1-0


[Site "https://www.chess.com"]

[Event "Titled Tuesday Blitz June 14 Early 2022"]
[White "Mchedlishvili, Mikheil"]
[Black "Martinez Alcantara, Jose Eduardo"]
[WhiteFideId "13600966"]
[BlackFideId "3805662"]
[WhiteElo "2545"]
[BlackElo "2703"]
[Result "1-0"]
[Round "11"]
[TimeControl "180+1"]
[Date "2022.06.14"]
[WhiteClock "0:00:13"]
[BlackClock "0:00:48"]

1. d4 {[%clk 0:03:00]}  Nf6 {[%clk 0:02:59]} 2. Bf4 {[%clk 0:02:59]}  e6 {[%clk 0:03:00]} 3. e3 {[%clk 0:02:57]}  b6 {[%clk 0:02:59]} 4. Nf3 {[%clk 0:02:54]}  Bb7 {[%clk 0:03:00]} 5. h3 {[%clk 0:02:54]}  d6 {[%clk 0:03:00]} 6. c4 {[%clk 0:02:50]}  Nbd7 {[%clk 0:03:00]} 7. Nc3 {[%clk 0:02:50]}  g6 {[%clk 0:03:01]} 8. Bg5 {[%clk 0:02:41]}  h6 {[%clk 0:03:01]} 9. Bh4 {[%clk 0:02:40]}  Be7 {[%clk 0:03:01]} 10. Bd3 {[%clk 0:02:38]}  Rg8 {[%clk 0:03:02]} 11. Bg3 {[%clk 0:02:28]}  g5 {[%clk 0:03:01]} 12. Qc2 {[%clk 0:02:19]}  h5 {[%clk 0:03:01]} 13. O-O-O {[%clk 0:02:14]}  a6 {[%clk 0:02:58]} 14. Kb1 {[%clk 0:02:13]}  b5 {[%clk 0:02:53]} 15. cxb5 {[%clk 0:02:05]}  axb5 {[%clk 0:02:53]} 16. Bxb5 {[%clk 0:02:04]}  Qb8 {[%clk 0:02:41]} 17. Qb3 {[%clk 0:01:54]}  h4 {[%clk 0:02:36]} 18. Bh2 {[%clk 0:01:53]}  g4 {[%clk 0:02:37]} 19. hxg4 {[%clk 0:01:52]}  Rxg4 {[%clk 0:02:37]} 20. Rhg1 {[%clk 0:01:46]}  h3 {[%clk 0:02:37]} 21. Ne1 {[%clk 0:01:34]}  hxg2 {[%clk 0:02:24]} 22. f3 {[%clk 0:01:32]}  Rg8 {[%clk 0:02:24]} 23. e4 {[%clk 0:01:28]}  d5 {[%clk 0:02:13]} 24. e5 {[%clk 0:01:24]}  Nh7 {[%clk 0:02:10]} 25. Rxg2 {[%clk 0:01:24]}  Rh8 {[%clk 0:02:08]} 26. Nd3 {[%clk 0:01:20]}  Nf8 {[%clk 0:02:08]} 27. Bf4 {[%clk 0:01:15]}  c6 {[%clk 0:02:06]} 28. Ba4 {[%clk 0:01:14]}  Qa7 {[%clk 0:02:06]} 29. Qc2 {[%clk 0:01:07]}  Qxd4 {[%clk 0:01:59]} 30. Bg3 {[%clk 0:00:57]}  Qb6 {[%clk 0:01:55]} 31. Bf2 {[%clk 0:00:56]}  Qa5 {[%clk 0:01:55]} 32. f4 {[%clk 0:00:53]}  Nb6 {[%clk 0:01:48]} 33. Bxb6 {[%clk 0:00:48]}  Qxb6 {[%clk 0:01:47]} 34. f5 {[%clk 0:00:48]}  Nd7 {[%clk 0:01:46]} 35. fxe6 {[%clk 0:00:47]}  fxe6 {[%clk 0:01:47]} 36. Nf4 {[%clk 0:00:46]}  Nc5 {[%clk 0:01:47]} 37. Nxe6 {[%clk 0:00:42]}  Nxa4 {[%clk 0:01:37]} 38. Nxa4 {[%clk 0:00:41]}  Qa5 {[%clk 0:01:32]} 39. b3 {[%clk 0:00:36]}  Qb4 {[%clk 0:01:11]} 40. Nac5 {[%clk 0:00:34]}  Bxc5 {[%clk 0:00:59]} 41. Nxc5 {[%clk 0:00:34]}  Kd8 {[%clk 0:00:56]} 42. Rg7 {[%clk 0:00:31]}  Bc8 {[%clk 0:00:52]} 43. Qf2 {[%clk 0:00:25]}  Qh4 {[%clk 0:00:52]} 44. Qxh4+ {[%clk 0:00:22]}  Rxh4 {[%clk 0:00:52]} 45. Rf1 {[%clk 0:00:21]}  Rh8 {[%clk 0:00:51]} 46. a4 {[%clk 0:00:19]}  Re8 {[%clk 0:00:50]} 47. Rf6 {[%clk 0:00:15]}  Re7 {[%clk 0:00:46]} 48. Rxe7 {[%clk 0:00:13]}  Kxe7 {[%clk 0:00:47]} 49. Rxc6 {[%clk 0:00:13]}  Bf5+ {[%clk 0:00:47]} 50. Kb2 {[%clk 0:00:14]}  Rh8 {[%clk 0:00:48]} 51. Rd6 {[%clk 0:00:13]}  Rh2+ {[%clk 0:00:48]} 52. Kc3 {[%clk 0:00:13]}  Rd2 {[%clk 0:00:48]} 53. Kxd2 {[%clk 0:00:13]} 1-0


[Site "https://www.chess.com"]

[Event "Titled Tuesday Blitz June 14 Early 2022"]
[White "Morefield, Jason"]
[Black "Volkov, Maksim"]
[WhiteFideId "30920825"]
[BlackFideId "54123070"]
[WhiteElo "2171"]
[BlackElo "2155"]
[Result "0-1"]
[Round "11"]
[TimeControl "180+1"]
[Date "2022.06.14"]
[WhiteClock "0:00:06"]
[BlackClock "0:01:02"]

1. e4 {[%clk 0:03:00]}  e6 {[%clk 0:02:58]} 2. d4 {[%clk 0:03:00]}  d5 {[%clk 0:02:58]} 3. Nc3 {[%clk 0:03:01]}  Bb4 {[%clk 0:02:58]} 4. e5 {[%clk 0:03:01]}  c5 {[%clk 0:02:58]} 5. a3 {[%clk 0:03:01]}  Bxc3+ {[%clk 0:02:59]} 6. bxc3 {[%clk 0:03:02]}  Qa5 {[%clk 0:02:59]} 7. Bd3 {[%clk 0:02:59]}  c4 {[%clk 0:02:49]} 8. Be2 {[%clk 0:02:54]}  Qxc3+ {[%clk 0:02:33]} 9. Bd2 {[%clk 0:02:54]}  Qxd4 {[%clk 0:02:33]} 10. Nf3 {[%clk 0:02:54]}  Qb6 {[%clk 0:02:33]} 11. Rb1 {[%clk 0:02:48]}  Qc7 {[%clk 0:02:31]} 12. Bb4 {[%clk 0:02:41]}  Ne7 {[%clk 0:02:30]} 13. h4 {[%clk 0:02:27]}  Nbc6 {[%clk 0:02:24]} 14. Bd6 {[%clk 0:02:22]}  Qa5+ {[%clk 0:02:24]} 15. Kf1 {[%clk 0:02:21]}  Nf5 {[%clk 0:02:24]} 16. Qc1 {[%clk 0:02:09]}  Nxd6 {[%clk 0:01:51]} 17. exd6 {[%clk 0:02:10]}  Qd8 {[%clk 0:01:51]} 18. Qf4 {[%clk 0:02:04]}  Qf6 {[%clk 0:01:51]} 19. Qg3 {[%clk 0:02:00]}  b6 {[%clk 0:01:43]} 20. h5 {[%clk 0:01:28]}  h6 {[%clk 0:01:43]} 21. Rh4 {[%clk 0:01:28]}  e5 {[%clk 0:01:39]} 22. Re1 {[%clk 0:01:12]}  O-O {[%clk 0:01:37]} 23. Nd2 {[%clk 0:00:57]}  Qxd6 {[%clk 0:01:26]} 24. Kg1 {[%clk 0:00:53]}  Re8 {[%clk 0:01:22]} 25. Rd1 {[%clk 0:00:46]}  Qf6 {[%clk 0:01:20]} 26. Bxc4 {[%clk 0:00:32]}  dxc4 {[%clk 0:01:15]} 27. Ne4 {[%clk 0:00:33]}  Qe7 {[%clk 0:01:07]} 28. Rd6 {[%clk 0:00:32]}  Nd4 {[%clk 0:01:06]} 29. Qe3 {[%clk 0:00:07]}  Nf5 {[%clk 0:01:04]} 30. Nf6+ {[%clk 0:00:06]}  Qxf6 {[%clk 0:01:02]} 31. Rxf6 {[%clk 0:00:06]}  Nxe3 {[%clk 0:01:02]} 0-1


[Site "https://www.chess.com"]